Workbook

Sheet Output
A1: =Input!$A$1 -> IT Capital Expenditure | G1: AER draft decision
A2: CitiPower | G2: RRP change
A3: Output
A4: Forecast, June $2021 '000 (no escalation)
B5: Check OK: | C5: =SUM(AH10:AH14)=0 -> TRUE
B8: Function Code | C8: Service | F8: 2021/22 | G8: 2021/22 | H8: 2021/22 | I8: 2022/23 | J8: 2022/23 | K8: 2022/23 | L8: 2023/24 | M8: 2023/24 | N8: 2023/24 | O8: 2024/25 | P8: 2024/25 | Q8: 2024/25 | R8: 2025/26 | S8: 2025/26 | T8: 2025/26 | V8: Total | AB8: Total | AD8: Total
F9: =CP!F$9 -> Labour | G9: =CP!G$9 -> Materials | H9: =CP!H$9 -> Contracts | I9: =CP!I$9 -> Labour | J9: =CP!J$9 -> Materials | K9: =CP!K$9 -> Contracts | L9: =CP!L$9 -> Labour | M9: =CP!M$9 -> Materials | N9: =CP!N$9 -> Contracts | O9: =CP!O$9 -> Labour | P9: =CP!P$9 -> Materials | Q9: =CP!Q$9 -> Contracts | R9: =CP!R$9 -> Labour | S9: =CP!S$9 -> Materials | T9: =CP!T$9 -> Contracts | V9: 2021/22 | W9: 2022/23 | X9: 2023/24 | Y9: 2024/25 | Z9: 2025/26 | AD9: Labour | AE9: Materials | AF9: Contracts
B10: 200 | C10: Total SCS | F10: =CP!F19 -> 13330.82767 | G10: =CP!G19 -> 4705.412666 | H10: =CP!H19 -> 3639.711263 | I10: =CP!I19 -> 12548.89986 | J10: =CP!J19 -> 4398.401138 | K10: =CP!K19 -> 3239.728317 | L10: =CP!L19 -> 9749.020428 | M10: =CP!M19 -> 4940.884938 | N10: =CP!N19 -> 5207.528606 | O10: =CP!O19 -> 5457.470433 | P10: =CP!P19 -> 4260.431817 | Q10: =CP!Q19 -> 3795.588104 | R10: =CP!R19 -> 3694.472491 | S10: =CP!S19 -> 3007.350056 | T10: =CP!T19 -> 1203.331729 | V10: =SUMIF($F$8:$T$8,V$9,$F10:$T10) -> 21675.9516 | W10: 20187.02932 | X10: 19897.43397 | Y10: 13513.49035 | Z10: 7905.154277 | AA10: =IFERROR(SUM(V10:Z10),"") -> 83179.05952 | AB10: =SUM(V10:Z10) -> 83179.05952 | AD10: =SUMIF($F$9:$T$9,AD$9,$F10:$T10) -> 44780.69089 | AE10: =SUMIF($F$9:$T$9,AE$9,$F10:$T10) -> 21312.48061 | AF10: =SUMIF($F$9:$T$9,AF$9,$F10:$T10) -> 17085.88802 | AH10: =AB10-CP!V19 -> 0
B11: 205 | C11: Total Metering | F11: =CP!F34 -> 350 | G11: =CP!G34 -> 0 | H11: =CP!H34 -> 0 | I11: =CP!I34 -> 0 | J11: =CP!J34 -> 0 | K11: =CP!K34 -> 0 | L11: =CP!L34 -> 350 | M11: =CP!M34 -> 0 | N11: =CP!N34 -> 0 | O11: =CP!O34 -> 0 | P11: =CP!P34 -> 0 | Q11: =CP!Q34 -> 0 | R11: =CP!R34 -> 350 | S11: =CP!S34 -> 0 | T11: =CP!T34 -> 0 | V11: 350 | W11: 0 | X11: 350 | Y11: 0 | Z11: 350 | AB11: =SUM(V11:Z11) -> 1050 | AD11: =AD10/SUM($AD10:$AF10) -> 0.538364958 | AE11: =AE10/SUM($AD10:$AF10) -> 0.2562241114 | AF11: =AF10/SUM($AD10:$AF10) -> 0.2054109305 | AH11: =AB11-CP!V34 -> 0
AH12: =SUM(AD10:AF10)-SUM(V10:Z10) -> 0
C15: Revised proposal (before real escalation)
D16: 2021/22 | E16: 2022/23 | F16: 2023/24 | G16: 2024/25 | H16: 2025/26
C17: ICT | D17: =SUMPRODUCT((CP!$F$10:$T$18)*($C17=CP!$D$10:$D$18)*(D$16=CP!$F$22:$T$22))/1000 -> 17.82584236 | E17: =SUMPRODUCT((CP!$F$10:$T$18)*($C17=CP!$D$10:$D$18)*(E$16=CP!$F$22:$T$22))/1000 -> 16.97816763 | F17: =SUMPRODUCT((CP!$F$10:$T$18)*($C17=CP!$D$10:$D$18)*(F$16=CP!$F$22:$T$22))/1000 -> 16.75663858 | G17: =SUMPRODUCT((CP!$F$10:$T$18)*($C17=CP!$D$10:$D$18)*(G$16=CP!$F$22:$T$22))/1000 -> 12.63826505 | H17: =SUMPRODUCT((CP!$F$10:$T$18)*($C17=CP!$D$10:$D$18)*(H$16=CP!$F$22:$T$22))/1000 -> 6.740012888 | I17: =IFERROR(SUM(D17:H17),"") -> 70.9389265
C18: DER | D18: =SUMPRODUCT((CP!$F$10:$T$18)*($C18=CP!$D$10:$D$18)*(D$16=CP!$F$22:$T$22))/1000 -> 3.850109237 | E18: =SUMPRODUCT((CP!$F$10:$T$18)*($C18=CP!$D$10:$D$18)*(E$16=CP!$F$22:$T$22))/1000 -> 3.208861691 | F18: =SUMPRODUCT((CP!$F$10:$T$18)*($C18=CP!$D$10:$D$18)*(F$16=CP!$F$22:$T$22))/1000 -> 3.140795394 | G18: =SUMPRODUCT((CP!$F$10:$T$18)*($C18=CP!$D$10:$D$18)*(G$16=CP!$F$22:$T$22))/1000 -> 0.875225305 | H18: =SUMPRODUCT((CP!$F$10:$T$18)*($C18=CP!$D$10:$D$18)*(H$16=CP!$F$22:$T$22))/1000 -> 1.165141389 | I18: =IFERROR(SUM(D18:H18),"") -> 12.24013302
D21: 2021/22 | E21: 2022/23 | F21: 2023/24 | G21: 2024/25 | H21: 2025/26
C22: Recurrent | D22: =SUMPRODUCT((CP!$F$10:$T$18)*($C22=CP!$B$10:$B$18)*(D$16=CP!$F$22:$T$22))/1000 -> 9.563751998 | E22: =SUMPRODUCT((CP!$F$10:$T$18)*($C22=CP!$B$10:$B$18)*(E$16=CP!$F$22:$T$22))/1000 -> 8.807789943 | F22: =SUMPRODUCT((CP!$F$10:$T$18)*($C22=CP!$B$10:$B$18)*(F$16=CP!$F$22:$T$22))/1000 -> 7.206913546 | G22: =SUMPRODUCT((CP!$F$10:$T$18)*($C22=CP!$B$10:$B$18)*(G$16=CP!$F$22:$T$22))/1000 -> 8.069656621 | H22: =SUMPRODUCT((CP!$F$10:$T$18)*($C22=CP!$B$10:$B$18)*(H$16=CP!$F$22:$T$22))/1000 -> 6.254438282 | I22: =IFERROR(SUM(D22:H22),"") -> 39.90255039
C23: Non-recurrent | D23: =SUMPRODUCT((CP!$F$10:$T$18)*($C23=CP!$B$10:$B$18)*(D$16=CP!$F$22:$T$22))/1000-D24 -> 8.262090363 | E23: =SUMPRODUCT((CP!$F$10:$T$18)*($C23=CP!$B$10:$B$18)*(E$16=CP!$F$22:$T$22))/1000-E24 -> 8.170377684 | F23: =SUMPRODUCT((CP!$F$10:$T$18)*($C23=CP!$B$10:$B$18)*(F$16=CP!$F$22:$T$22))/1000-F24 -> 9.549725032 | G23: =SUMPRODUCT((CP!$F$10:$T$18)*($C23=CP!$B$10:$B$18)*(G$16=CP!$F$22:$T$22))/1000-G24 -> 4.568608428 | H23: =SUMPRODUCT((CP!$F$10:$T$18)*($C23=CP!$B$10:$B$18)*(H$16=CP!$F$22:$T$22))/1000-H24 -> 0.4855746061 | I23: =IFERROR(SUM(D23:H23),"") -> 31.03637611
C24: DER | D24: =D18 -> 3.850109237 | E24: =E18 -> 3.208861691 | F24: 3.140795394 | G24: 0.875225305 | H24: 1.165141389 | I24: =IFERROR(SUM(D24:H24),"") -> 12.24013302

Sheet CP
A1: =Input!$A$1 -> IT Capital Expenditure | C1: AER draft decision
A2: CitiPower | C2: RRP change
A3: Summary
A4: Forecast, June $2021 '000 (no escalation)
A7: Standard control services
A8: IT Category | F8: 2021/22 PAL SCS | I8: 2022/23 PAL SCS | L8: 2023/24 PAL SCS | O8: 2024/25 PAL SCS | R8: 2025/26 PAL SCS | V8: 2021/22 - 2025/26 | X8: CP SCS
A9: Description | B9: Recurrent/Non-Recurrent | C9: Category | D9: AER category | F9: Labour | G9: Materials | H9: Contracts | I9: Labour | J9: Materials | K9: Contracts | L9: Labour | M9: Materials | N9: Contracts | O9: Labour | P9: Materials | Q9: Contracts | R9: Labour | S9: Materials | T9: Contracts | X9: 2021/22 | Y9: 2022/23 | Z9: 2023/24 | AA9: 2024/25 | AB9: 2025/26
A10: Recurrent programs | B10: Recurrent | D10: ICT | F10: 4252.648807 | G10: 3375.968546 | H10: 1935.134645 | I10: 4220.092199 | J10: 2924.658338 | K10: 1663.039405 | L10: 3615.898042 | M10: 2459.383807 | N10: 1131.631696 | O10: 3393.232088 | P10: 3206.02839 | Q10: 1470.396144 | R10: 3103.126411 | S10: 2131.110837 | T10: 1020.201034 | V10: =SUM(F10:T10) -> 39902.55039 | X10: =SUMIF($F$22:$T$22,X$9,$F10:$T10) -> 9563.751998 | Y10: =SUMIF($F$22:$T$22,Y$9,$F10:$T10) -> 8807.789943 | Z10: 7206.913546 | AA10: 8069.656621 | AB10: 6254.438282
A11: Digital network | B11: Non-recurrent | C11: New or expanded capabilities | D11: DER | F11: 2176.896488 | G11: 581.1149555 | H11: 0 | I11: 2178.04501 | J11: 1030.816681 | K11: 0 | L11: 1939.353471 | M11: 1201.441923 | N11: 0 | O11: 291.6375198 | P11: 583.5877851 | Q11: 0 | R11: 511.6078521 | S11: 653.5335366 | T11: 0 | V11: =SUM(F11:T11) -> 11148.03522 | X11: 2758.011444 | Y11: 3208.861691 | Z11: 3140.795394 | AA11: 875.225305 | AB11: 1165.141389
A12: 5 Minute Settlements | B12: Non-recurrent | C12: Complying new obligations | D12: ICT | F12: 5667.548808 | G12: 112.2178903 | H12: 1409.512871 | I12: 1552.407095 | J12: 26.68165473 | K12: 0 | L12: 0 | M12: 30.33155122 | N12: 0 | O12: 0 | P12: 36.86988931 | Q12: 0 | R12: 0 | S12: 74.15044496 | T12: 0 | V12: 8909.720205 | X12: 7189.279569 | Y12: 1579.08875 | Z12: 30.33155122 | AA12: 36.86988931 | AB12: 74.15044496
A13: SAP S/4HANA | B13: Non-recurrent | C13: Maintaining existing services | D13: ICT | F13: 0 | G13: 0 | H13: 0 | I13: 1113.620553 | J13: 0 | K13: 649.3414302 | L13: 2068.152455 | M13: 779.2097162 | N13: 2584.378892 | O13: 1845.428345 | P13: 0 | Q13: 2233.73452 | R13: 0 | S13: 0 | T13: 0 | V13: 11273.86591 | X13: 0 | Y13: 1762.961983 | Z13: 5431.741063 | AA13: 4079.162864 | AB13: 0
A14: Cyber security | B14: Non-recurrent | C14: New or expanded capabilities | D14: ICT | F14: 91.64141341 | G14: 198.6300375 | H14: 194.0994604 | I14: 95.37603168 | J14: 186.9459176 | K14: 217.4677001 | L14: 103.1317994 | M14: 193.6225575 | N14: 241.3128426 | O14: 102.7190003 | P14: 213.6524773 | Q14: 206.0220317 | R14: 79.73822823 | S14: 148.5552381 | T14: 183.1306948 | V14: 2456.045431 | X14: 484.3709112 | Y14: 499.7896494 | Z14: 538.0671996 | AA14: 522.3935092 | AB14: 411.4241611
A15: Customer Enablement | B15: Non-recurrent | C15: New or expanded capabilities | D15: ICT | F15: =IFERROR(Input!F10*(1-Input!$E$10),"") -> 100.7352138 | G15: =IFERROR(Input!G10*(1-Input!$E$10),"") -> 10.05301323 | H15: =IFERROR(Input!H10*(1-Input!$E$10),"") -> 0 | I15: =IFERROR(Input!I10*(1-Input!$E$10),"") -> 438.6895711 | J15: =IFERROR(Input!J10*(1-Input!$E$10),"") -> 20.10602646 | K15: =IFERROR(Input!K10*(1-Input!$E$10),"") -> 0 | L15: =IFERROR(Input!L10*(1-Input!$E$10),"") -> 41.76825936 | M15: =IFERROR(Input!M10*(1-Input!$E$10),"") -> 0 | N15: =IFERROR(Input!N10*(1-Input!$E$10),"") -> 0 | O15: =IFERROR(Input!O10*(1-Input!$E$10),"") -> 0 | P15: =IFERROR(Input!P10*(1-Input!$E$10),"") -> 0 | Q15: =IFERROR(Input!Q10*(1-Input!$E$10),"") -> 0 | R15: =IFERROR(Input!R10*(1-Input!$E$10),"") -> 0 | S15: =IFERROR(Input!S10*(1-Input!$E$10),"") -> 0 | T15: =IFERROR(Input!T10*(1-Input!$E$10),"") -> 0 | V15: 611.352084 | X15: 110.788227 | Y15: 458.7955976 | Z15: 41.76825936 | AA15: 0 | AB15: 0
A16: Solar enablement DVMS | B16: Non-recurrent | C16: New or expanded capabilities | D16: DER | F16: 624.5719637 | G16: 467.5258297 | H16: 0 | I16: 0 | J16: 0 | K16: 0 | L16: 0 | M16: 0 | N16: 0 | O16: 0 | P16: 0 | Q16: 0 | R16: 0 | S16: 0 | T16: 0 | V16: 1092.097793 | X16: 1092.097793 | Y16: 0 | Z16: 0 | AA16: 0 | AB16: 0
A17: Intelligent engineering | B17: Non-recurrent | C17: New or expanded capabilities | D17: ICT | F17: 0 | G17: 0 | H17: 0 | I17: 533.1069359 | J17: 249.2901267 | K17: 0 | L17: 1416.09979 | M17: 345.634137 | N17: 1061.710994 | O17: 132.4489282 | P17: 289.0320309 | Q17: 0 | R17: 0 | S17: 0 | T17: 0 | V17: =SUM(F17:T17) -> 4027.322943 | X17: 0 | Y17: 782.3970626 | Z17: 2823.444921 | AA17: 421.4809591 | AB17: 0
A18: Field service management solution | B18: Non-recurrent | C18: New or expanded capabilities | D18: ICT | F18: =Input!F11 -> 416.7849755 | G18: =Input!G11 -> -40.09760701 | H18: =Input!H11 -> 100.9642867 | I18: =Input!I11 -> 2417.562468 | J18: =Input!J11 -> -40.09760701 | K18: =Input!K11 -> 709.879781 | L18: =Input!L11 -> 564.6166109 | M18: =Input!M11 -> -68.73875488 | N18: =Input!N11 -> 188.4941811 | O18: =Input!O11 -> -307.9954477 | P18: =Input!P11 -> -68.73875488 | Q18: =Input!Q11 -> -114.5645915 | R18: =Input!R11 -> 0 | S18: =Input!S11 -> 0 | T18: =Input!T11 -> 0 | V18: 3758.06954 | X18: 477.6516552 | Y18: 3087.344642 | Z18: 684.3720371 | AA18: -491.298794 | AB18: 0
A19: Total | F19: =SUM(F10:F18) -> 13330.82767 | G19: 4705.412666 | H19: 3639.711263 | I19: 12548.89986 | J19: 4398.401138 | K19: 3239.728317 | L19: 9749.020428 | M19: 4940.884938 | N19: 5207.528606 | O19: 5457.470433 | P19: 4260.431817 | Q19: 3795.588104 | R19: 3694.472491 | S19: 3007.350056 | T19: 1203.331729 | V19: =SUM(F19:T19) -> 83179.05952 | X19: 21675.9516 | Y19: 20187.02932 | Z19: 19897.43397 | AA19: 13513.49035 | AB19: 7905.154277 | AD19: =SUM(X19:AB19)-V19 -> 0
A22: SCS summary by Recurrent/non-recurrent | F22: 2021/22 | G22: 2021/22 | H22: 2021/22 | I22: 2022/23 | J22: 2022/23 | K22: 2022/23 | L22: 2023/24 | M22: 2023/24 | N22: 2023/24 | O22: 2024/25 | P22: 2024/25 | Q22: 2024/25 | R22: 2025/26 | S22: 2025/26 | T22: 2025/26 | V22: 2021/22 - 2025/26 | X22: 2021/22 | Y22: 2022/23 | Z22: 2023/24 | AA22: 2024/25 | AB22: 2025/26
A23: Recurrent | B23: Maintaining existing services | F23: =SUMIF($B$10:$B$18, $A23, F$10:F$18) -> 4252.648807 | G23: 3375.968546 | H23: 1935.134645 | I23: 4220.092199 | J23: 2924.658338 | K23: 1663.039405 | L23: 3615.898042 | M23: 2459.383807 | N23: 1131.631696 | O23: 3393.232088 | P23: 3206.02839 | Q23: 1470.396144 | R23: 3103.126411 | S23: 2131.110837 | T23: 1020.201034 | V23: =SUM(F23:T23) -> 39902.55039 | X23: =SUMIF($F$22:$T$22,X$9,$F23:$T23) -> 9563.751998 | Y23: =SUMIF($F$22:$T$22,Y$9,$F23:$T23) -> 8807.789943 | Z23: 7206.913546 | AA23: 8069.656621 | AB23: 6254.438282
A24: Non-Recurrent | B24: Maintaining existing services | F24: 9078.178863 | G24: 1329.444119 | H24: 1704.576618 | I24: 8328.807665 | J24: 1473.742799 | K24: 1576.688911 | L24: 6133.122386 | M24: 2481.50113 | N24: 4075.896909 | O24: 2064.238345 | P24: 1054.403428 | Q24: 2325.19196 | R24: 591.3460803 | S24: 876.2392197 | T24: 183.1306948 | V24: =SUM(F24:T24) -> 43276.50913 | X24: =SUMIF($F$22:$T$22,X$9,$F24:$T24) -> 12112.1996 | Y24: 11379.23938 | Z24: 12690.52043 | AA24: 5443.833733 | AB24: 1650.715995
A25: Total | F25: =SUM(F23:F24) -> 13330.82767 | G25: 4705.412666 | H25: 3639.711263 | I25: 12548.89986 | J25: 4398.401138 | K25: 3239.728317 | L25: 9749.020428 | M25: 4940.884938 | N25: 5207.528606 | O25: 5457.470433 | P25: 4260.431817 | Q25: 3795.588104 | R25: 3694.472491 | S25: 3007.350056 | T25: 1203.331729 | V25: =SUM(F25:T25) -> 83179.05952 | X25: =SUMIF($F$22:$T$22,X$9,$F25:$T25) -> 21675.9516 | Y25: 20187.02932 | Z25: 19897.43397 | AA25: 13513.49035 | AB25: 7905.154277 | AD25: =SUM(F25:T25)-V25 -> 0 | AE25: =V25-Output!AB10 -> 0
A26: Check | F26: =SUM(F23:F24)-F19 -> 0 | G26: 0 | H26: 0 | I26: 0 | J26: 0 | K26: 0 | L26: 0 | M26: 0 | N26: 0 | O26: 0 | P26: 0 | Q26: 0 | R26: 0 | S26: 0 | T26: 0
A29: Metering services | V29: Total
A30: IT Category | F30: 2021/22 PAL AMI | I30: 2022/23 PAL AMI | L30: 2023/24 PAL AMI | O30: 2024/25 PAL AMI | R30: 2025/26 PAL AMI | V30: 2021/22 - 2025/26 | X30: CP AMI
A31: Description | B31: Recurrent/Non-Recurrent | F31: Labour | G31: Materials | H31: Contracts | I31: Labour | J31: Materials | K31: Contracts | L31: Labour | M31: Materials | N31: Contracts | O31: Labour | P31: Materials | Q31: Contracts | R31: Labour | S31: Materials | T31: Contracts | X31: 2021/22 | Y31: 2022/23 | Z31: 2023/24 | AA31: 2024/25 | AB31: 2025/26
A32: UIQ upgrades | B32: Recurrent | F32: 350 | G32: 0 | H32: 0 | I32: 0 | J32: 0 | K32: 0 | L32: 350 | M32: 0 | N32: 0 | O32: 0 | P32: 0 | Q32: 0 | R32: 350 | S32: 0 | T32: 0 | V32: =SUM(F32:T32) -> 1050 | X32: =SUMIF($F$22:$T$22,X$9,$F32:$T32) -> 350 | Y32: =SUMIF($F$22:$T$22,Y$9,$F32:$T32) -> 0 | Z32: 350 | AA32: 0 | AB32: 350
X33: =SUMIF($F$22:$T$22,X$9,$F33:$T33) -> 0 | Y33: 0 | Z33: 0 | AA33: 0 | AB33: 0
A34: Total | F34: =SUM(F32:F33) -> 350 | G34: =SUM(G32:G33) -> 0 | H34: =SUM(H32:H33) -> 0 | I34: =SUM(I32:I33) -> 0 | J34: =SUM(J32:J33) -> 0 | K34: =SUM(K32:K33) -> 0 | L34: =SUM(L32:L33) -> 350 | M34: =SUM(M32:M33) -> 0 | N34: =SUM(N32:N33) -> 0 | O34: =SUM(O32:O33) -> 0 | P34: =SUM(P32:P33) -> 0 | Q34: =SUM(Q32:Q33) -> 0 | R34: =SUM(R32:R33) -> 350 | S34: =SUM(S32:S33) -> 0 | T34: =SUM(T32:T33) -> 0 | V34: =SUM(F34:T34) -> 1050 | X34: =SUMIF($F$22:$T$22,X$9,$F34:$T34) -> 350 | Y34: 0 | Z34: 350 | AA34: 0 | AB34: 350 | AD34: =SUM(F34:T34)-V34 -> 0 | AE34: =V34-Output!AB11 -> 0

Sheet CP2 (hidden)
A1: =Input!$A$1 -> IT Capital Expenditure
A2: CitiPower
A3: Summary
A4: Forecast, June $2021 '000 (no escalation)
A7: Standard control services
A8: IT Category | D8: 2021/22 CP SCS | G8: 2022/23 CP SCS | J8: 2023/24 CP SCS | M8: 2024/25 CP SCS | P8: 2025/26 CP SCS | T8: 2021/22 - 2025/26
A9: Description | B9: Recurrent/Non-Recurrent | C9: Category | D9: Labour | E9: Materials | F9: Contracts | G9: Labour | H9: Materials | I9: Contracts | J9: Labour | K9: Materials | L9: Contracts | M9: Labour | N9: Materials | O9: Contracts | P9: Labour | Q9: Materials | R9: Contracts
A10: =Input!#REF! ->  | B10: =Input!#REF! ->  | C10: =IF(ISBLANK(Input!#REF!), "", Input!#REF!) ->  | D10: =(1-Input!#REF!)*Input!#REF! ->  | E10: =(1-Input!#REF!)*Input!#REF! ->  | F10: =(1-Input!#REF!)*Input!#REF! ->  | G10: =(1-Input!#REF!)*Input!#REF! ->  | H10: =(1-Input!#REF!)*Input!#REF! ->  | I10: =(1-Input!#REF!)*Input!#REF! ->  | J10: =(1-Input!#REF!)*Input!#REF! ->  | K10: =(1-Input!#REF!)*Input!#REF! ->  | L10: =(1-Input!#REF!)*Input!#REF! ->  | M10: =(1-Input!#REF!)*Input!#REF! ->  | N10: =(1-Input!#REF!)*Input!#REF! ->  | O10: =(1-Input!#REF!)*Input!#REF! ->  | P10: =(1-Input!#REF!)*Input!#REF! ->  | Q10: =(1-Input!#REF!)*Input!#REF! ->  | R10: =(1-Input!#REF!)*Input!#REF! ->  | T10: =SUM(D10:R10) -> 
A11: =Input!#REF! ->  | B11: =Input!#REF! ->  | C11: =IF(ISBLANK(Input!#REF!), "", Input!#REF!) ->  | D11: =(1-Input!#REF!)*Input!#REF! ->  | E11: =(1-Input!#REF!)*Input!#REF! ->  | F11: =(1-Input!#REF!)*Input!#REF! ->  | G11: =(1-Input!#REF!)*Input!#REF! ->  | H11: =(1-Input!#REF!)*Input!#REF! ->  | I11: =(1-Input!#REF!)*Input!#REF! ->  | J11: =(1-Input!#REF!)*Input!#REF! ->  | K11: =(1-Input!#REF!)*Input!#REF! ->  | L11: =(1-Input!#REF!)*Input!#REF! ->  | M11: =(1-Input!#REF!)*Input!#REF! ->  | N11: =(1-Input!#REF!)*Input!#REF! ->  | O11: =(1-Input!#REF!)*Input!#REF! ->  | P11: =(1-Input!#REF!)*Input!#REF! ->  | Q11: =(1-Input!#REF!)*Input!#REF! ->  | R11: =(1-Input!#REF!)*Input!#REF! ->  | T11: =SUM(D11:R11) -> 
A12: =Input!#REF! ->  | B12: =Input!#REF! ->  | C12: =IF(ISBLANK(Input!#REF!), "", Input!#REF!) ->  | D12: =(1-Input!#REF!)*Input!#REF! ->  | E12: =(1-Input!#REF!)*Input!#REF! ->  | F12: =(1-Input!#REF!)*Input!#REF! ->  | G12: =(1-Input!#REF!)*Input!#REF! ->  | H12: =(1-Input!#REF!)*Input!#REF! ->  | I12: =(1-Input!#REF!)*Input!#REF! ->  | J12: =(1-Input!#REF!)*Input!#REF! ->  | K12: =(1-Input!#REF!)*Input!#REF! ->  | L12: =(1-Input!#REF!)*Input!#REF! ->  | M12: =(1-Input!#REF!)*Input!#REF! ->  | N12: =(1-Input!#REF!)*Input!#REF! ->  | O12: =(1-Input!#REF!)*Input!#REF! ->  | P12: =(1-Input!#REF!)*Input!#REF! ->  | Q12: =(1-Input!#REF!)*Input!#REF! ->  | R12: =(1-Input!#REF!)*Input!#REF! -> 
A13: =Input!#REF! ->  | B13: =Input!#REF! ->  | C13: =IF(ISBLANK(Input!#REF!), "", Input!#REF!) ->  | D13: =(1-Input!#REF!)*Input!#REF! ->  | E13: =(1-Input!#REF!)*Input!#REF! ->  | F13: =(1-Input!#REF!)*Input!#REF! ->  | G13: =(1-Input!#REF!)*Input!#REF! ->  | H13: =(1-Input!#REF!)*Input!#REF! ->  | I13: =(1-Input!#REF!)*Input!#REF! ->  | J13: =(1-Input!#REF!)*Input!#REF! ->  | K13: =(1-Input!#REF!)*Input!#REF! ->  | L13: =(1-Input!#REF!)*Input!#REF! ->  | M13: =(1-Input!#REF!)*Input!#REF! ->  | N13: =(1-Input!#REF!)*Input!#REF! ->  | O13: =(1-Input!#REF!)*Input!#REF! ->  | P13: =(1-Input!#REF!)*Input!#REF! ->  | Q13: =(1-Input!#REF!)*Input!#REF! ->  | R13: =(1-Input!#REF!)*Input!#REF! -> 
A14: =Input!#REF! ->  | B14: =Input!#REF! ->  | C14: =IF(ISBLANK(Input!#REF!), "", Input!#REF!) ->  | D14: =(1-Input!#REF!)*Input!#REF! ->  | E14: =(1-Input!#REF!)*Input!#REF! ->  | F14: =(1-Input!#REF!)*Input!#REF! ->  | G14: =(1-Input!#REF!)*Input!#REF! ->  | H14: =(1-Input!#REF!)*Input!#REF! ->  | I14: =(1-Input!#REF!)*Input!#REF! ->  | J14: =(1-Input!#REF!)*Input!#REF! ->  | K14: =(1-Input!#REF!)*Input!#REF! ->  | L14: =(1-Input!#REF!)*Input!#REF! ->  | M14: =(1-Input!#REF!)*Input!#REF! ->  | N14: =(1-Input!#REF!)*Input!#REF! ->  | O14: =(1-Input!#REF!)*Input!#REF! ->  | P14: =(1-Input!#REF!)*Input!#REF! ->  | Q14: =(1-Input!#REF!)*Input!#REF! ->  | R14: =(1-Input!#REF!)*Input!#REF! -> 
A15: =Input!#REF! ->  | B15: =Input!#REF! ->  | C15: =IF(ISBLANK(Input!#REF!), "", Input!#REF!) ->  | D15: =(1-Input!#REF!)*Input!#REF! ->  | E15: =(1-Input!#REF!)*Input!#REF! ->  | F15: =(1-Input!#REF!)*Input!#REF! ->  | G15: =(1-Input!#REF!)*Input!#REF! ->  | H15: =(1-Input!#REF!)*Input!#REF! ->  | I15: =(1-Input!#REF!)*Input!#REF! ->  | J15: =(1-Input!#REF!)*Input!#REF! ->  | K15: =(1-Input!#REF!)*Input!#REF! ->  | L15: =(1-Input!#REF!)*Input!#REF! ->  | M15: =(1-Input!#REF!)*Input!#REF! ->  | N15: =(1-Input!#REF!)*Input!#REF! ->  | O15: =(1-Input!#REF!)*Input!#REF! ->  | P15: =(1-Input!#REF!)*Input!#REF! ->  | Q15: =(1-Input!#REF!)*Input!#REF! ->  | R15: =(1-Input!#REF!)*Input!#REF! -> 
A16: =Input!#REF! ->  | B16: =Input!#REF! ->  | C16: =IF(ISBLANK(Input!#REF!), "", Input!#REF!) ->  | D16: =(1-Input!#REF!)*Input!#REF! ->  | E16: =(1-Input!#REF!)*Input!#REF! ->  | F16: =(1-Input!#REF!)*Input!#REF! ->  | G16: =(1-Input!#REF!)*Input!#REF! ->  | H16: =(1-Input!#REF!)*Input!#REF! ->  | I16: =(1-Input!#REF!)*Input!#REF! ->  | J16: =(1-Input!#REF!)*Input!#REF! ->  | K16: =(1-Input!#REF!)*Input!#REF! ->  | L16: =(1-Input!#REF!)*Input!#REF! ->  | M16: =(1-Input!#REF!)*Input!#REF! ->  | N16: =(1-Input!#REF!)*Input!#REF! ->  | O16: =(1-Input!#REF!)*Input!#REF! ->  | P16: =(1-Input!#REF!)*Input!#REF! ->  | Q16: =(1-Input!#REF!)*Input!#REF! ->  | R16: =(1-Input!#REF!)*Input!#REF! -> 
A17: =Input!#REF! ->  | B17: =Input!#REF! ->  | C17: =IF(ISBLANK(Input!#REF!), "", Input!#REF!) ->  | D17: =(1-Input!#REF!)*Input!#REF! ->  | E17: =(1-Input!#REF!)*Input!#REF! ->  | F17: =(1-Input!#REF!)*Input!#REF! ->  | G17: =(1-Input!#REF!)*Input!#REF! ->  | H17: =(1-Input!#REF!)*Input!#REF! ->  | I17: =(1-Input!#REF!)*Input!#REF! ->  | J17: =(1-Input!#REF!)*Input!#REF! ->  | K17: =(1-Input!#REF!)*Input!#REF! ->  | L17: =(1-Input!#REF!)*Input!#REF! ->  | M17: =(1-Input!#REF!)*Input!#REF! ->  | N17: =(1-Input!#REF!)*Input!#REF! ->  | O17: =(1-Input!#REF!)*Input!#REF! ->  | P17: =(1-Input!#REF!)*Input!#REF! ->  | Q17: =(1-Input!#REF!)*Input!#REF! ->  | R17: =(1-Input!#REF!)*Input!#REF! -> 
A18: =Input!#REF! ->  | B18: =Input!#REF! ->  | C18: =IF(ISBLANK(Input!#REF!), "", Input!#REF!) ->  | D18: =(1-Input!#REF!)*Input!#REF! ->  | E18: =(1-Input!#REF!)*Input!#REF! ->  | F18: =(1-Input!#REF!)*Input!#REF! ->  | G18: =(1-Input!#REF!)*Input!#REF! ->  | H18: =(1-Input!#REF!)*Input!#REF! ->  | I18: =(1-Input!#REF!)*Input!#REF! ->  | J18: =(1-Input!#REF!)*Input!#REF! ->  | K18: =(1-Input!#REF!)*Input!#REF! ->  | L18: =(1-Input!#REF!)*Input!#REF! ->  | M18: =(1-Input!#REF!)*Input!#REF! ->  | N18: =(1-Input!#REF!)*Input!#REF! ->  | O18: =(1-Input!#REF!)*Input!#REF! ->  | P18: =(1-Input!#REF!)*Input!#REF! ->  | Q18: =(1-Input!#REF!)*Input!#REF! ->  | R18: =(1-Input!#REF!)*Input!#REF! -> 
A19: =Input!A10 -> Customer Enablement | B19: =Input!B10 -> Non-recurrent | C19: =IF(ISBLANK(Input!C10), "", Input!C10) -> New or expanded capabilities | D19: =(1-Input!$E10)*Input!F10 -> 100.7352138 | E19: =(1-Input!$E10)*Input!G10 -> 10.05301323 | F19: =(1-Input!$E10)*Input!H10 -> 0 | G19: =(1-Input!$E10)*Input!I10 -> 438.6895711 | H19: =(1-Input!$E10)*Input!J10 -> 20.10602646 | I19: =(1-Input!$E10)*Input!K10 -> 0 | J19: =(1-Input!$E10)*Input!L10 -> 41.76825936 | K19: =(1-Input!$E10)*Input!M10 -> 0 | L19: =(1-Input!$E10)*Input!N10 -> 0 | M19: =(1-Input!$E10)*Input!O10 -> 0 | N19: =(1-Input!$E10)*Input!P10 -> 0 | O19: =(1-Input!$E10)*Input!Q10 -> 0 | P19: =(1-Input!$E10)*Input!R10 -> 0 | Q19: =(1-Input!$E10)*Input!S10 -> 0 | R19: =(1-Input!$E10)*Input!T10 -> 0 | T19: 611.352084
A20: =Input!A11 -> Field service management solution | B20: =Input!B11 -> Non-recurrent | C20: =IF(ISBLANK(Input!C11), "", Input!C11) -> New or expanded capabilities | D20: =(1-Input!$E11)*Input!F11 ->  | E20: =(1-Input!$E11)*Input!G11 ->  | F20: =(1-Input!$E11)*Input!H11 ->  | G20: =(1-Input!$E11)*Input!I11 ->  | H20: =(1-Input!$E11)*Input!J11 ->  | I20: =(1-Input!$E11)*Input!K11 ->  | J20: =(1-Input!$E11)*Input!L11 ->  | K20: =(1-Input!$E11)*Input!M11 ->  | L20: =(1-Input!$E11)*Input!N11 ->  | M20: =(1-Input!$E11)*Input!O11 ->  | N20: =(1-Input!$E11)*Input!P11 ->  | O20: =(1-Input!$E11)*Input!Q11 ->  | P20: =(1-Input!$E11)*Input!R11 ->  | Q20: =(1-Input!$E11)*Input!S11 ->  | R20: =(1-Input!$E11)*Input!T11 -> 
A21: =Input!#REF! ->  | B21: =Input!#REF! ->  | C21: =IF(ISBLANK(Input!#REF!), "", Input!#REF!) ->  | D21: =(1-Input!#REF!)*Input!#REF! ->  | E21: =(1-Input!#REF!)*Input!#REF! ->  | F21: =(1-Input!#REF!)*Input!#REF! ->  | G21: =(1-Input!#REF!)*Input!#REF! ->  | H21: =(1-Input!#REF!)*Input!#REF! ->  | I21: =(1-Input!#REF!)*Input!#REF! ->  | J21: =(1-Input!#REF!)*Input!#REF! ->  | K21: =(1-Input!#REF!)*Input!#REF! ->  | L21: =(1-Input!#REF!)*Input!#REF! ->  | M21: =(1-Input!#REF!)*Input!#REF! ->  | N21: =(1-Input!#REF!)*Input!#REF! ->  | O21: =(1-Input!#REF!)*Input!#REF! ->  | P21: =(1-Input!#REF!)*Input!#REF! ->  | Q21: =(1-Input!#REF!)*Input!#REF! ->  | R21: =(1-Input!#REF!)*Input!#REF! -> 
A22: =Input!#REF! ->  | B22: =Input!#REF! ->  | C22: =IF(ISBLANK(Input!#REF!), "", Input!#REF!) ->  | D22: =(1-Input!#REF!)*Input!#REF! ->  | E22: =(1-Input!#REF!)*Input!#REF! ->  | F22: =(1-Input!#REF!)*Input!#REF! ->  | G22: =(1-Input!#REF!)*Input!#REF! ->  | H22: =(1-Input!#REF!)*Input!#REF! ->  | I22: =(1-Input!#REF!)*Input!#REF! ->  | J22: =(1-Input!#REF!)*Input!#REF! ->  | K22: =(1-Input!#REF!)*Input!#REF! ->  | L22: =(1-Input!#REF!)*Input!#REF! ->  | M22: =(1-Input!#REF!)*Input!#REF! ->  | N22: =(1-Input!#REF!)*Input!#REF! ->  | O22: =(1-Input!#REF!)*Input!#REF! ->  | P22: =(1-Input!#REF!)*Input!#REF! ->  | Q22: =(1-Input!#REF!)*Input!#REF! ->  | R22: =(1-Input!#REF!)*Input!#REF! -> 
A23: =Input!#REF! ->  | B23: =Input!#REF! ->  | C23: =IF(ISBLANK(Input!#REF!), "", Input!#REF!) ->  | D23: =(1-Input!#REF!)*Input!#REF! ->  | E23: =(1-Input!#REF!)*Input!#REF! ->  | F23: =(1-Input!#REF!)*Input!#REF! ->  | G23: =(1-Input!#REF!)*Input!#REF! ->  | H23: =(1-Input!#REF!)*Input!#REF! ->  | I23: =(1-Input!#REF!)*Input!#REF! ->  | J23: =(1-Input!#REF!)*Input!#REF! ->  | K23: =(1-Input!#REF!)*Input!#REF! ->  | L23: =(1-Input!#REF!)*Input!#REF! ->  | M23: =(1-Input!#REF!)*Input!#REF! ->  | N23: =(1-Input!#REF!)*Input!#REF! ->  | O23: =(1-Input!#REF!)*Input!#REF! ->  | P23: =(1-Input!#REF!)*Input!#REF! ->  | Q23: =(1-Input!#REF!)*Input!#REF! ->  | R23: =(1-Input!#REF!)*Input!#REF! -> 
A24: =Input!#REF! ->  | B24: =Input!#REF! ->  | C24: =IF(ISBLANK(Input!#REF!), "", Input!#REF!) ->  | D24: =(1-Input!#REF!)*Input!#REF! ->  | E24: =(1-Input!#REF!)*Input!#REF! ->  | F24: =(1-Input!#REF!)*Input!#REF! ->  | G24: =(1-Input!#REF!)*Input!#REF! ->  | H24: =(1-Input!#REF!)*Input!#REF! ->  | I24: =(1-Input!#REF!)*Input!#REF! ->  | J24: =(1-Input!#REF!)*Input!#REF! ->  | K24: =(1-Input!#REF!)*Input!#REF! ->  | L24: =(1-Input!#REF!)*Input!#REF! ->  | M24: =(1-Input!#REF!)*Input!#REF! ->  | N24: =(1-Input!#REF!)*Input!#REF! ->  | O24: =(1-Input!#REF!)*Input!#REF! ->  | P24: =(1-Input!#REF!)*Input!#REF! ->  | Q24: =(1-Input!#REF!)*Input!#REF! ->  | R24: =(1-Input!#REF!)*Input!#REF! -> 
A25: =Input!#REF! ->  | B25: =Input!#REF! ->  | C25: =IF(ISBLANK(Input!#REF!), "", Input!#REF!) ->  | D25: =(1-Input!#REF!)*Input!#REF! ->  | E25: =(1-Input!#REF!)*Input!#REF! ->  | F25: =(1-Input!#REF!)*Input!#REF! ->  | G25: =(1-Input!#REF!)*Input!#REF! ->  | H25: =(1-Input!#REF!)*Input!#REF! ->  | I25: =(1-Input!#REF!)*Input!#REF! ->  | J25: =(1-Input!#REF!)*Input!#REF! ->  | K25: =(1-Input!#REF!)*Input!#REF! ->  | L25: =(1-Input!#REF!)*Input!#REF! ->  | M25: =(1-Input!#REF!)*Input!#REF! ->  | N25: =(1-Input!#REF!)*Input!#REF! ->  | O25: =(1-Input!#REF!)*Input!#REF! ->  | P25: =(1-Input!#REF!)*Input!#REF! ->  | Q25: =(1-Input!#REF!)*Input!#REF! ->  | R25: =(1-Input!#REF!)*Input!#REF! -> 
A26: =Input!#REF! ->  | B26: =Input!#REF! ->  | C26: =IF(ISBLANK(Input!#REF!), "", Input!#REF!) ->  | D26: =(1-Input!#REF!)*Input!#REF! ->  | E26: =(1-Input!#REF!)*Input!#REF! ->  | F26: =(1-Input!#REF!)*Input!#REF! ->  | G26: =(1-Input!#REF!)*Input!#REF! ->  | H26: =(1-Input!#REF!)*Input!#REF! ->  | I26: =(1-Input!#REF!)*Input!#REF! ->  | J26: =(1-Input!#REF!)*Input!#REF! ->  | K26: =(1-Input!#REF!)*Input!#REF! ->  | L26: =(1-Input!#REF!)*Input!#REF! ->  | M26: =(1-Input!#REF!)*Input!#REF! ->  | N26: =(1-Input!#REF!)*Input!#REF! ->  | O26: =(1-Input!#REF!)*Input!#REF! ->  | P26: =(1-Input!#REF!)*Input!#REF! ->  | Q26: =(1-Input!#REF!)*Input!#REF! ->  | R26: =(1-Input!#REF!)*Input!#REF! -> 
A27: =Input!#REF! ->  | B27: =Input!#REF! ->  | C27: =IF(ISBLANK(Input!#REF!), "", Input!#REF!) ->  | D27: =(1-Input!#REF!)*Input!#REF! ->  | E27: =(1-Input!#REF!)*Input!#REF! ->  | F27: =(1-Input!#REF!)*Input!#REF! ->  | G27: =(1-Input!#REF!)*Input!#REF! ->  | H27: =(1-Input!#REF!)*Input!#REF! ->  | I27: =(1-Input!#REF!)*Input!#REF! ->  | J27: =(1-Input!#REF!)*Input!#REF! ->  | K27: =(1-Input!#REF!)*Input!#REF! ->  | L27: =(1-Input!#REF!)*Input!#REF! ->  | M27: =(1-Input!#REF!)*Input!#REF! ->  | N27: =(1-Input!#REF!)*Input!#REF! ->  | O27: =(1-Input!#REF!)*Input!#REF! ->  | P27: =(1-Input!#REF!)*Input!#REF! ->  | Q27: =(1-Input!#REF!)*Input!#REF! ->  | R27: =(1-Input!#REF!)*Input!#REF! -> 
A28: =Input!#REF! ->  | B28: =Input!#REF! ->  | C28: =IF(ISBLANK(Input!#REF!), "", Input!#REF!) ->  | D28: =(1-Input!#REF!)*Input!#REF! ->  | E28: =(1-Input!#REF!)*Input!#REF! ->  | F28: =(1-Input!#REF!)*Input!#REF! ->  | G28: =(1-Input!#REF!)*Input!#REF! ->  | H28: =(1-Input!#REF!)*Input!#REF! ->  | I28: =(1-Input!#REF!)*Input!#REF! ->  | J28: =(1-Input!#REF!)*Input!#REF! ->  | K28: =(1-Input!#REF!)*Input!#REF! ->  | L28: =(1-Input!#REF!)*Input!#REF! ->  | M28: =(1-Input!#REF!)*Input!#REF! ->  | N28: =(1-Input!#REF!)*Input!#REF! ->  | O28: =(1-Input!#REF!)*Input!#REF! ->  | P28: =(1-Input!#REF!)*Input!#REF! ->  | Q28: =(1-Input!#REF!)*Input!#REF! ->  | R28: =(1-Input!#REF!)*Input!#REF! -> 
A29: Total | D29: =SUM(D10:D28) ->  | E29: =SUM(E10:E28) ->  | F29: =SUM(F10:F28) ->  | G29: =SUM(G10:G28) ->  | H29: =SUM(H10:H28) ->  | I29: =SUM(I10:I28) ->  | J29: =SUM(J10:J28) ->  | K29: =SUM(K10:K28) ->  | L29: =SUM(L10:L28) ->  | M29: =SUM(M10:M28) ->  | N29: =SUM(N10:N28) ->  | O29: =SUM(O10:O28) ->  | P29: =SUM(P10:P28) ->  | Q29: =SUM(Q10:Q28) ->  | R29: =SUM(R10:R28) ->  | T29: =SUM(D29:R29) ->  | V29: =SUM(D29:R29)-T29 ->  | W29: =T29-#REF! -> 
A32: SCS summary by Recurrent/non-recurrent | D32: 2021/22 | E32: 2021/22 | F32: 2021/22 | G32: 2022/23 | H32: 2022/23 | I32: 2022/23 | J32: 2023/24 | K32: 2023/24 | L32: 2023/24 | M32: 2024/25 | N32: 2024/25 | O32: 2024/25 | P32: 2025/26 | Q32: 2025/26 | R32: 2025/26 | T32: 2021/22 - 2025/26
A33: Recurrent | D33: =SUMIF($B$10:$B$28, $A33, D$10:D$28) -> 0 | E33: =SUMIF($B$10:$B$28, $A33, E$10:E$28) -> 0 | F33: 0 | G33: 0 | H33: 0 | I33: 0 | J33: 0 | K33: 0 | L33: 0 | M33: 0 | N33: 0 | O33: 0 | P33: 0 | Q33: 0 | R33: 0 | T33: =SUM(D33:R33) -> 0
A34: Non-Recurrent | D34: =SUMIF($B$10:$B$28, $A34, D$10:D$28) ->  | T34: =SUM(D34:R34) -> 
A35: Total | D35: =SUM(D33:D34) ->  | T35: =SUM(D35:R35) ->  | V35: =SUM(D35:R35)-T35 ->  | W35: =T35-#REF! -> 
A36: Check | D36: =SUM(D33:D34)-D29 -> 
A39: Metering services | T39: Total
A40: IT Category | D40: 2021/22 CP SCS | G40: 2022/23 CP SCS | J40: 2023/24 CP SCS | M40: 2024/25 CP SCS | P40: 2025/26 CP SCS
A41: Description | B41: Recurrent/Non-Recurrent | D41: Labour | E41: Materials | F41: Contracts | G41: Labour | H41: Materials | I41: Contracts | J41: Labour | K41: Materials | L41: Contracts | M41: Labour | N41: Materials | O41: Contracts | P41: Labour | Q41: Materials | R41: Contracts | T41: 2021/22 - 2025/26
A42: UIQ upgrades | B42: Recurrent | D42: =Input!#REF!*(1-Input!#REF!) ->  | E42: =Input!#REF!*(1-Input!#REF!) ->  | F42: =Input!#REF!*(1-Input!#REF!) ->  | G42: =Input!#REF!*(1-Input!#REF!) ->  | H42: =Input!#REF!*(1-Input!#REF!) ->  | I42: =Input!#REF!*(1-Input!#REF!) ->  | J42: =Input!#REF!*(1-Input!#REF!) ->  | K42: =Input!#REF!*(1-Input!#REF!) ->  | L42: =Input!#REF!*(1-Input!#REF!) ->  | M42: =Input!#REF!*(1-Input!#REF!) ->  | N42: =Input!#REF!*(1-Input!#REF!) ->  | O42: =Input!#REF!*(1-Input!#REF!) ->  | P42: =Input!#REF!*(1-Input!#REF!) ->  | Q42: =Input!#REF!*(1-Input!#REF!) ->  | R42: =Input!#REF!*(1-Input!#REF!) ->  | T42: =SUM(D42:R42) -> 
T43: =SUM(D43:R43) -> 0
A44: Total | D44: =SUM(D42:D43) ->  | E44: =SUM(E42:E43) ->  | F44: =SUM(F42:F43) ->  | G44: =SUM(G42:G43) ->  | H44: =SUM(H42:H43) ->  | I44: =SUM(I42:I43) ->  | J44: =SUM(J42:J43) ->  | K44: =SUM(K42:K43) ->  | L44: =SUM(L42:L43) ->  | M44: =SUM(M42:M43) ->  | N44: =SUM(N42:N43) ->  | O44: =SUM(O42:O43) ->  | P44: =SUM(P42:P43) ->  | Q44: =SUM(Q42:Q43) ->  | R44: =SUM(R42:R43) ->  | T44: =SUM(D44:R44) ->  | V44: =SUM(D44:R44)-T44 ->  | W44: =T44-#REF! -> 

Sheet Input
A1: IT Capital Expenditure
A2: Input
A3: Input
A4: Forecast, June $2021 '000 (no escalation)
B5: Check OK: | C5: =SUM(W10:W21)=0 -> TRUE
A7: Standard control services
F8: 2021/22 VPN SCS | I8: 2022/23 VPN SCS | L8: 2023/24 VPN SCS | O8: 2024/25 VPN SCS | R8: 2025/26 VPN SCS
A9: Project | B9: Recurrent/Non-Recurrent | C9: Category | D9: Business | E9: Powercor allocation | F9: Labour | G9: Materials | H9: Contracts | I9: Labour | J9: Materials | K9: Contracts | L9: Labour | M9: Materials | N9: Contracts | O9: Labour | P9: Materials | Q9: Contracts | R9: Labour | S9: Materials | T9: Contracts
A10: Customer Enablement | B10: Non-recurrent | C10: New or expanded capabilities | D10: VPN | E10: 0.7 | F10: =[1]Output_VPN!F$12 -> 335.7840459 | G10: =[1]Output_VPN!G$12 -> 33.5100441 | H10: =[1]Output_VPN!H$12 -> 0 | I10: =[1]Output_VPN!I$12 -> 1462.29857 | J10: =[1]Output_VPN!J$12 -> 67.02008819 | K10: =[1]Output_VPN!K$12 -> 0 | L10: =[1]Output_VPN!L$12 -> 139.2275312 | M10: =[1]Output_VPN!M$12 -> 0 | N10: =[1]Output_VPN!N$12 -> 0 | O10: =[1]Output_VPN!O$12 -> 0 | P10: =[1]Output_VPN!P$12 -> 0 | Q10: =[1]Output_VPN!Q$12 -> 0 | R10: =[1]Output_VPN!R$12 -> 0 | S10: =[1]Output_VPN!S$12 -> 0 | T10: =[1]Output_VPN!T$12 -> 0
A11: Field service management solution | B11: Non-recurrent | C11: New or expanded capabilities | D11: CP | E11: NA | F11: =[2]Output_CP!F$12 -> 416.7849755 | G11: =[2]Output_CP!G$12 -> -40.09760701 | H11: =[2]Output_CP!H$12 -> 100.9642867 | I11: =[2]Output_CP!I$12 -> 2417.562468 | J11: =[2]Output_CP!J$12 -> -40.09760701 | K11: =[2]Output_CP!K$12 -> 709.879781 | L11: =[2]Output_CP!L$12 -> 564.6166109 | M11: =[2]Output_CP!M$12 -> -68.73875488 | N11: =[2]Output_CP!N$12 -> 188.4941811 | O11: =[2]Output_CP!O$12 -> -307.9954477 | P11: =[2]Output_CP!P$12 -> -68.73875488 | Q11: =[2]Output_CP!Q$12 -> -114.5645915 | R11: =[2]Output_CP!R$12 -> 0 | S11: =[2]Output_CP!S$12 -> 0 | T11: =[2]Output_CP!T$12 -> 0
F12: =SUM(F10:F11) -> 752.5690214 | G12: -6.587562915 | H12: 100.9642867 | I12: 3879.861038 | J12: 26.92248118 | K12: 709.879781 | L12: 703.8441421 | M12: -68.73875488 | N12: 188.4941811 | O12: -307.9954477 | P12: -68.73875488 | Q12: -114.5645915 | R12: 0 | S12: 0 | T12: 0
A14: SCS summary
F15: 2021/22 VPN SCS | I15: 2022/23 VPN SCS | L15: 2023/24 VPN SCS | O15: 2024/25 VPN SCS | R15: 2025/26 VPN SCS
A16: Recurrent | F16: =SUMIF($B$10:$B$11,$A16,F$10:F$11) -> 0 | G16: 0 | H16: 0 | I16: 0 | J16: 0 | K16: 0 | L16: 0 | M16: 0 | N16: 0 | O16: 0 | P16: 0 | Q16: 0 | R16: 0 | S16: 0 | T16: 0
A17: Non-Recurrent | F17: 752.5690214 | G17: -6.587562915 | H17: 100.9642867 | I17: 3879.861038 | J17: 26.92248118 | K17: 709.879781 | L17: 703.8441421 | M17: -68.73875488 | N17: 188.4941811 | O17: -307.9954477 | P17: -68.73875488 | Q17: -114.5645915 | R17: 0 | S17: 0 | T17: 0
A18: Total | F18: =SUM(F16:F17) -> 752.5690214 | G18: -6.587562915 | H18: 100.9642867 | I18: 3879.861038 | J18: 26.92248118 | K18: 709.879781 | L18: 703.8441421 | M18: -68.73875488 | N18: 188.4941811 | O18: -307.9954477 | P18: -68.73875488 | Q18: -114.5645915 | R18: 0 | S18: 0 | T18: 0
A19: Check | F19: =SUM(F16:F17)-F12 -> 0 | G19: 0 | H19: 0 | I19: 0 | J19: 0 | K19: 0 | L19: 0 | M19: 0 | N19: 0 | O19: 0 | P19: 0 | Q19: 0 | R19: 0 | S19: 0 | T19: 0
